Cogmind - Beta 14 @@@ ROGUE MODE // 2024.10.01 @ 11:53:14 Player: Minty Result: Destroyed by as-96937 with Assembled Heavy Rifle Performance ------------- Evolutions (0) 0 Regions Visited (4) 800 Robots Destroyed (40) 200 Value Destroyed (759) 759 Prototype IDs (0) 0 Alien Tech Used (0) 0 Bonus (0) 0 TOTAL SCORE: 1759 Bonus ------- None Cogmind --------- Core Integrity 0/250 Matter 300/300 Energy 108/125 System Corruption 0% Temperature Cool (20) Movement Rolling (90) Location -9/Mines Parts ------- > --- POWER (1) -------- Light Ion Engine > --- PROPULSION (2) --- Wheel Compact Wheel > --- UTILITY (2) ------ Medium Storage Unit Seismic Detector > --- WEAPON (2) ------- Beam Cannon Beam Cannon > --- INVENTORY (10) --- Weight Redist. System Power Shielding Power Shielding Utility Shielding Hacking Suite Hacking Suite EM Pulse Gun Light Cannon Hammer Peak State ------------ > --- POWER ------------ Ion Engine > --- PROPULSION ------- Light Treads Light Treads > --- UTILITY ---------- Improved Heat Sink Medium Storage Unit > --- WEAPON ----------- Beam Cannon Beam Cannon > --- INVENTORY -------- Ion Engine Wheel Compact Wheel Weight Redist. System Power Shielding Power Shielding Hacking Suite Hacking Suite EM Pulse Gun Light Cannon [Rating: 10] Favorites ----------- Power Ion Engine Engine Ion Engine Propulsion Light Treads Treads Light Treads Leg Aluminum Leg Wheel Wheel Utility Medium Storage Unit Device Improved Heat Sink Storage Medium Storage Unit Protection Power Shielding Weapon Beam Cannon Energy Gun EM Pulse Gun Energy Cannon Beam Cannon Ballistic Gun Assault Rifle Build | -11 -10 -10 -10 -9 ------- Run | Yrd Mat Min Exi Min Slots Evolved . | . . . . . Power . | . . . . . Propulsion . | . . . . . Utility . | . . . . . Weapon . | . . . . . Parts Attached 22 | . 10 9 . 3 Power 4 | . 2 2 . . Engine 4 | . 2 2 . . Core . | . . . . . Reactor . | . . . . . Propulsion 8 | . 2 5 . 1 Treads 3 | . 2 1 . . Leg . | . . . . . Wheel 5 | . . 4 . 1 Hover . | . . . . . Flight . | . . . . . Utility 7 | . 3 2 . 2 Device 2 | . 1 . . 1 Storage 1 | . 1 . . . Processor . | . . . . . Hackware . | . . . . . Protection 4 | . 1 2 . 1 Artifact . | . . . . . Weapon 3 | . 3 . . . Energy Gun 1 | . 1 . . . Energy Cannon 2 | . 2 . . . Ballistic Gun . | . . . . . Ballistic Cannon . | . . . . . Launcher . | . . . . . Special Weapon . | . . . . . Impact Weapon . | . . . . . Slashing Weapon . | . . . . . Piercing Weapon . | . . . . . Special Melee Weapon . | . . . . . Unidentified Prototypes . | . . . . . Parts Lost 7 | . 2 4 . 1 Power 1 | . . 1 . . Propulsion 2 | . . 1 . 1 Utility 2 | . . 2 . . Weapon 2 | . 2 . . . Highest Loss Streak 2 | . 1 2 . 1 To Critical Strikes . | . . . . . Average Slot Usage (%) 93 | . 92 96 85 95 Engine 13 | . 14 11 14 14 Treads 14 | . 23 9 . . Leg 2 | . 4 . . . Wheel 11 | . . 18 28 26 Device 2 | . 1 5 . 3 Storage 14 | . 14 14 14 14 Protection 8 | . 9 7 . 7 Energy Gun 1 | . 4 . . . Energy Cannon 16 | . 3 28 28 28 Ballistic Gun 7 | . 15 . . . Peak Build Rating 10 | . 10 10 7 8 Average Rating 7 | . 7 8 7 7 On Entrance 7 | 6 6 10 7 7 Naked Turns . | . . . . . Heaviest Build 22 | 14 22 22 19 20 Greatest Support 40 | 20 40 40 20 26 Greatest Overweight (x) 1 | . . 1 . . Average Overweight (x) . | . . . . . Largest Inventory Capacity 10 | . 10 10 10 10 Average Capacity 9 | . 9 10 10 10 Most Carried 10 | . 10 10 9 9 Average Carried 8 | . 8 8 9 7 Final Capacity 10 | 8 10 10 10 10 Final Carried 10 | 6 10 9 9 9 Class Distribution -------------------- 100% | Mutant Dominant Class ---------------- Mutant | -10/Materials Mutant | -10/Mines Mutant | -10/Exiles Mutant | -9/Mines Resources | -11 -10 -10 -10 -9 ----------- Run | Yrd Mat Min Exi Min Matter Collected 702 | 146 369 96 . 91 Remotely . | . . . . . Salvage Created 1040 | . 760 202 . 78 Parts 72 | . 37 20 . 15 Haulers Intercepted 2 | . 2 . . . Recyclers Shooed 2 | . 2 . . . Parts Field Recycled . | . . . . . Retrieved Matter . | . . . . . Parts Self-Destructed . | . . . . . Prevented . | . . . . . Kills | -11 -10 -10 -10 -9 ------- Run | Yrd Mat Min Exi Min Combat Hostiles Destroyed 29 | . 11 12 . 6 Guns 9 | . 9 . . . Cannons 18 | . 2 12 . 4 AOE 2 | . . . . 2 Classes Destroyed 9 | . 7 1 . 1 Worker 3 | . 2 1 . . Builder 1 | . 1 . . . Tunneler 1 | . . . . 1 Hauler 2 | . 2 . . . Recycler 1 | . 1 . . . Operator 2 | . 2 . . . Watcher 1 | . 1 . . . Swarmer 18 | . . 12 . 6 Grunt 11 | . 11 . . . Best Kill Streak 4 | . 4 3 . 3 Combat Bots Only 3 | . 2 3 . 3 Max Kills in Single Turn 3 | . 1 2 . 3 Gunslinging . | . . . . . Exploded 2 | . . . . 2 Melee . | . . . . . Uniques/NPCs Destroyed . | . . . . . Combat | -11 -10 -10 -10 -9 -------- Run | Yrd Mat Min Exi Min Hostile Shots Fired 179 | . 76 84 . 19 Missed 49 | . 19 22 . 8 Damage Taken 1330 | . 754 483 . 93 Core 257 | . 159 57 . 41 Absorbed by Shields . | . . . . . Redirected to Shielding 17 | . 15 2 . . Core Remaining (%) 100 | 100 . . . . Volleys Fired 125 | . 78 35 . 12 Largest 2 | . 2 2 . 2 Hottest 120 | . 120 120 . 120 Shots Fired 213 | . 119 70 . 24 Gun 97 | . 97 . . . Cannon 116 | . 22 70 . 24 Launcher . | . . . . . Special . | . . . . . Kinetic 75 | . 75 . . . Thermal 116 | . 22 70 . 24 Explosive . | . . . . . Electromagnetic 22 | . 22 . . . Robot Hit Streak 9 | . 9 6 . 5 Robot Miss Streak 8 | . 4 8 . 2 Penetration Max . | . . . . . Secondary Targets 1 | . 1 . . . Max Gunslinging Chain 1 | . 1 . . . Shots Hit Robots 124 | . 84 29 . 11 Core Hits 56 | . 36 12 . 8 Critical Kills . | . . . . . Critical Parts Destroyed . | . . . . . Critical Strikes . | . . . . . Melee Attacks . | . . . . . Impact . | . . . . . Slashing . | . . . . . Piercing . | . . . . . Sneak Attacks . | . . . . . Combat Hostiles . | . . . . . Follow-up Attacks . | . . . . . Damage Inflicted 2072 | . 1168 647 . 257 Guns 884 | . 884 . . . Cannons 1111 | . 284 635 . 192 Explosions 65 | . . . . 65 Melee . | . . . . . Ramming 12 | . . 12 . . Kinetic 716 | . 716 . . . Thermal 1176 | . 284 635 . 257 Explosive . | . . . . . Electromagnetic 168 | . 168 . . . Impact . | . . . . . Slashing . | . . . . . Piercing . | . . . . . Highest Corruption . | . . . . . Average Corruption . | . . . . . Corruption Purged . | . . . . . Corruption Blocked . | . . . . . Overload Shots . | . . . . . Overflow Damage 36 | . . 36 . . Projectiles 36 | . . 36 . . Explosions . | . . . . . Melee . | . . . . . Knockbacks . | . . . . . Impact . | . . . . . Kinetic . | . . . . . Secondary . | . . . . . Self-Inflicted Damage . | . . . . . Shots . | . . . . . Rammed 1 | . . 1 . . Targets Rammed 1 | . . 1 . . Kicked . | . . . . . Crushed . | . . . . . Highest Temperature 378 | . 264 378 . 360 Average Temperature 110 | . 72 117 . 143 Received Heat Transfer 474 | . 474 . . . Effects 4 | . 1 3 . . Shutdowns 1 | . . 1 . . Energy Bleed 1 | . 1 . . . Matter Decay 2 | . . 2 . . Siege Activations . | . . . . . Robots Corrupted . | . . . . . Combat Hostiles . | . . . . . Parts Fried 1 | . 1 . . . Impact Corruptions . | . . . . . Robots Melted . | . . . . . Combat Hostiles . | . . . . . Parts Melted 6 | . 3 2 . 1 Heat Transferred 2431 | . 592 1332 . 507 Parts Sabotaged . | . . . . . Parts Stolen . | . . . . . Parts Stripped . | . . . . . Power Chain Reactions . | . . . . . Alert | -11 -10 -10 -10 -9 ------- Run | Yrd Mat Min Exi Min Peak Influence 305 | . 198 242 . 305 Initial 57 | . . 57 . . Average 102 | . 85 130 . 90 Maximum Alert Level 1 | . . 1 . 1 Low Security (%) 92 | . 100 81 . 91 Level 1 7 | . . 18 . 8 Level 2 . | . . . . . Level 3 . | . . . . . Level 4 . | . . . . . Level 5 . | . . . . . High Security . | . . . . . Max Security . | . . . . . Squads Dispatched 2 | . 2 . . . Investigation 1 | . 1 . . . Extermination . | . . . . . Reinforcement 1 | . 1 . . . Assault . | . . . . . Garrison . | . . . . . Intercept . | . . . . . Searches Triggered . | . . . . . Construction Impeded . | . . . . . Haulers Reinforced . | . . . . . Active Scanning Responses . | . . . . . Cargo Convoy Interrupts . | . . . . . Stealth | -11 -10 -10 -10 -9 --------- Run | Yrd Mat Min Exi Min Distress Signals . | . . . . . Communications Jammed . | . . . . . Distress Signals . | . . . . . Times Spotted 40 | . 15 12 . 13 Peak Tracking Total 12 | . 2 3 . 12 Tactical Retreats . | . . . . . Traps | -11 -10 -10 -10 -9 ------- Run | Yrd Mat Min Exi Min Traps Triggered . | . . . . . Indirectly . | . . . . . Trap Hack Attempts . | . . . . . Triggered . | . . . . . Disarmed . | . . . . . Reprogrammed . | . . . . . Reused . | . . . . . Traps Extracted . | . . . . . Installed . | . . . . . Triggered . | . . . . . Machines | -11 -10 -10 -10 -9 ---------- Run | Yrd Mat Min Exi Min Machines Disabled 8 | . . . . 8 Max in Single Turn 6 | . . . . 6 Machines Repaired . | . . . . . Machines Dismantled . | . . . . . Machines Sabotaged . | . . . . . Overloaded Fab Kills . | . . . . . Hacking | -11 -10 -10 -10 -9 --------- Run | Yrd Mat Min Exi Min Machines Accessed 6 | . 5 . 1 . Terminals 5 | . 5 . . . Fabricators . | . . . . . Repair Stations . | . . . . . Recycling Units . | . . . . . Scanalyzers . | . . . . . Garrison Access . | . . . . . Total Hacks 18 | . 17 . 1 . Successful 7 | . 6 . 1 . Failed 11 | . 11 . . . Catastrophic 4 | . 4 . . . Database Lockouts . | . . . . . Manual 14 | . 14 . . . Terminals 17 | . 17 . . . Fabricators . | . . . . . Repair Stations . | . . . . . Recycling Units . | . . . . . Scanalyzers . | . . . . . Garrison Access . | . . . . . Terminal Hacks 5 | . 4 . 1 . Record 1 | . . . 1 . Terminal Index 1 | . 1 . . . Alert Level 3 | . 3 . . . Fabricator Hacks . | . . . . . Repair Station Hacks . | . . . . . Recycling Unit Hacks . | . . . . . Scanalyzer . | . . . . . Garrison Access Hacks . | . . . . . Unauthorized Hacks 2 | . 2 . . . Terminals 2 | . 2 . . . Botnet 2 | . 2 . . . Fabricators . | . . . . . Repair Stations . | . . . . . Recycling Units . | . . . . . Scanalyzers . | . . . . . Garrison Access . | . . . . . Data Cores Recovered 1 | . 1 . . . Used 1 | . 1 . . . Hacking Detections 5 | . 5 . . . Full Trace Events 3 | . 3 . . . Feedback Events . | . . . . . Feedback Blocked . | . . . . . Robot Schematics Acquired . | . . . . . Robots Built . | . . . . . Authchips . | . . . . . Time . | . . . . . Total Robot Build Rating . | . . . . . Part Schematics Acquired . | . . . . . Parts Built . | . . . . . Authchips . | . . . . . Time . | . . . . . Total Part Build Rating . | . . . . . Parts Repaired . | . . . . . Time . | . . . . . Parts Recycled . | . . . . . Recycled Matter . | . . . . . Retrieved Matter . | . . . . . Retrieved Components . | . . . . . Parts Scanalyzed . | . . . . . Part Schematics Acquired . | . . . . . Parts Damaged . | . . . . . Bothacking | -11 -10 -10 -10 -9 ------------ Run | Yrd Mat Min Exi Min Used RIF Installer . | . . . . . Robots Hacked . | . . . . . Non-combat . | . . . . . Combat . | . . . . . Robot Hacks Applied . | . . . . . Relay Couplers Released . | . . . . . Fabnet Peak Effective % . | . . . . . Robots Rewired . | . . . . . Allies Hacked . | . . . . . Hacks Repelled . | . . . . . Allies | -11 -10 -10 -10 -9 -------- Run | Yrd Mat Min Exi Min Total Allies . | . . . . . Largest Group . | . . . . . Highest-Rated Group . | . . . . . Highest-Rated Ally . | . . . . . Total Orders . | . . . . . Ally Attacks . | . . . . . Total Damage . | . . . . . Kills . | . . . . . Allies Corrupted . | . . . . . Allies Melted . | . . . . . Intel | -11 -10 -10 -10 -9 ------- Run | Yrd Mat Min Exi Min Robot Analysis Total . | . . . . . Derelict Logs Recovered 4 | . . 2 . 2 Drone Launches . | . . . . . Drone Recoveries . | . . . . . Exploration | -11 -10 -10 -10 -9 ------------- Run | Yrd Mat Min Exi Min Turns Passed 1484 | . 706 498 100 180 Spaces Moved 954 | 1 315 358 125 155 Core . | . . . . . Treads 351 | . 270 81 . . Legs 46 | 1 45 . . . Wheels 557 | . . 277 125 155 Hover . | . . . . . Flight . | . . . . . Fastest Speed 80 | 120 120 80 80 80 Average Speed 115 | 120 154 104 80 89 Slowest Speed 160 | 120 160 160 80 90 Overloaded Moves . | . . . . . Propulsion Burnouts . | . . . . . Robots Hopped . | . . . . . Cave-ins Triggered . | . . . . . Exploration Rate (%) 47 | 2 54 85 50 46 Regions Visited 4 Branch Regions 3 Pre-discovered Areas 1 | . . . . 1 Known Exits Taken . | . . . . . Unknown Exits Taken 4 | 1 1 1 1 . Scrap Searched 2 | . . 1 . 1 Spaces Dug . | . . . . . Terrain Destroyed 35 | . . . . 35 Melee . | . . . . . Projectile . | . . . . . AOE 35 | . . . . 35 Terrain Rammed . | . . . . . Walls Destroyed . | . . . . . Machines Disabled . | . . . . . Actions | -11 -10 -10 -10 -9 --------- Run | Yrd Mat Min Exi Min Total 1122 | . 416 409 124 173 Wait 1 | . . . . 1 Move 950 | . 314 357 124 155 Hop . | . . . . . Pick Up 12 | . 8 2 . 2 Fast Attach 5 | . 3 2 . . Attach 7 | . 2 3 . 2 Detach 2 | . . 2 . . Swap 10 | . 5 4 . 1 Drop 9 | . 6 3 . . Fire 125 | . 78 35 . 12 Melee . | . . . . . Ram . | . . . . . Kick . | . . . . . Crush 1 | . . 1 . . Escape Stasis . | . . . . . Rewire . | . . . . . Trap . | . . . . . Miscellaneous . | . . . . . Route ------- -11/Scrapyard -10/Materials (discovered 2 exits: [*Mat] / [*Min]) -10/Mines (discovered 2 exits: [*Mat] / *Exi) -10/Exiles (discovered 2 exits: [*Min x2]) -9/Mines History --------- Turn | Location | Event 1 | -11/Scrapyard | Discovered new exit (range 0) 1 | -11/Scrapyard | Entered Materials 234 | -10/Materials | Discovered new exit (range 9) 303 | -10/Materials | Build established: Mutant 543 | -10/Materials | Core integrity fell below 50% 688 | -10/Materials | Discovered new exit (range 8) 707 | -10/Materials | Entered Mines 791 | -10/Mines | Discovered new exit (range 5) 1158 | -10/Mines | Core integrity fell below 20% 1201 | -10/Mines | Deemed a non-threat by the Exiles lab entrance 1201 | -10/Mines | Discovered new exit (range 5) 1205 | -10/Mines | Entered Exiles 1205 | -10/Exiles | Found Exiles lab abandoned 1217 | -10/Exiles | Discovered new exit (range 15) 1298 | -10/Exiles | Discovered new exit (range 10) 1305 | -10/Exiles | Entered Mines 1360 | -9/Mines | Learned Materials trap positions 1463 | -9/Mines | Assembled infested the area 1468 | -9/Mines | Assisted by a Guerilla fighting off Assembled 1485 | -9/Mines | Destroyed by as-96937 with Assembled Heavy Rifle Last Messages --------------- squads over in the main complex, and they later decided the best way to defend their interests would be to start expanding in this direction." 01458_ T-07 Excavator is excavating. 01463_ ALERT: Infestation in the mines, dispatching Demolisher response squad. 01466_ T-07 Excavator is excavating. 01469_ Flight Unit melted. 01469_ S-10 Pest destroyed. 01469_ Plasma Injector explodes. 01471_ T-07 Excavator is excavating. 01472_ Searching scrap... 01472_ Found VTOL Module. 01472_ Found Hvy. Assault Rifle. 01472_ Found Shotgun. 01472_ Found Utility Shielding. 01472_ Found 66 Matter. 01473_ Acquired 50 matter. 01474_ Acquired Utility Shielding. 01475_ T-07 Excavator is excavating. 01483_ B4-JTB(h) destroyed. Map ----- +----------------------------------------------------+ | | | | | | | | | | | | | | | | | | | | | | | | | | | | | | | | | ?????????????????????????????????????????????????? | | ?????????????????????????????????????????????????? | | ???????????????????####??????????????????? ??????? | | ???????????????????# #????????????????? ????? | | ???????????????????# #???????????????? ????? | | ???????????????????# ??????????????? ???? | | ????????????## ???## ##???????????? ???? | | ???????????## ## #??#####???? "??? | | ???????????# a #?## #???? ??? | | ??????????a aa a @##? #????[ "??? | | ?????????? a a a ## ### #???= "#?? | | ??????????????????????## #?? ##?? | | ???????????????????????# ### #?? | | ???????????????????????# =[%* "#?? | | ???????????????????????# %[ "#?? | | ???????????????????????## ###### "#?? | | ????????????????????????### #?????? #" """#??? | | ??????????????????????????# #???????#?########??? | | ??????????????????????????# ####### #???????????? | | ?????????????????????????## #???????????? | | ?????????????????????????# #######????????????? | | ?????????????????????????# ??????????????????? | | ????????????????????????? ?#####????????????? | | ???????????????????# ##### % ##???????????? | | ???????????????????# * ##### ??????? | | ???????????????????# ##### = ?????? | | ?????????????????????????? ?????? | | ???????????????????# ###### #### ??????? | | ???????????????????# ##???????????? | | ???????????????????# ##### ##????????????? | | ?????????????????????????## ##????######???? | | ??????????????????????????### ######"" """##??? | | ???????????????????# ######## ###?# #??? | | ???????????????????# ####" "#?? | +----------------------------------------------------+ Best States ------------- Heat Dissipation 39 Energy Generation 10 Energy Capacity 250 Matter Stores 300 Matter Capacity 300 Sight Range 16 Terrain Scan Density 10 Armor Coverage 150 Power Shielding 33 Evasion (%) 55 Recoil Reduction 2 Item Schematics ----------------- None Robot Schematics ------------------ None Fabricated ------------ Nothing Alien Tech Used ----------------- None Achievements -------------- None Challenges ------------ None Game ------ Seed TerrainPersonalLoader Manual? 0 Play Time 00:08:00 Cumulative 953.6 hours Start 2024.09.30 @ 16:02:40 End 2024.10.01 @ 11:53:14 Sessions 3 Manual Loads 0 Difficulty Rogue Special Mode None Game No. 1166 Rogue 886 Adventurer 124 Explorer 156 Win Type - Total 41 Types 28/0/8/3/1/0/0/1/0 Lore% 83 Gallery% 90 Achievement% 78 Wizard Run 0 Options --------- Layout 0 ASCII 0 Keyboard 1 Movement Numpad Keybinds 0 Fullscreen 2 Font 18/X11 Map View 76x50 Zoom Use 0% Tactical HUD 1 Map Filters NONE Filters NONE Steam 1 RUN: 4c394aa5-808a-48e3-ae28-379a350f99e6